[Event "*** Qualifier 4: Titled Tuesday 3|2 Blitz"]
[Site "Chess.com"]
[Date "2017.04.25"]
[Round "2"]
[White "underdogchss"]
[Black "pKiLz5Rn9b"]
[Result "0-1"]
[WhiteElo "2381"]
[BlackElo "2443"]
[TimeControl "180+2"]
[EndTime "13:22:11 PDT"]
[Termination "pKiLz5Rn9b won by resignation"]

1. d4 {[%clk 0:03:02]} 1... Nf6 {[%clk 0:03:00.7]} 2. c4 {[%clk 0:02:59.5]} 2...
e6 {[%clk 0:03:01.9]} 3. Nf3 {[%clk 0:03:00.2]} 3... b6 {[%clk 0:03:02.7]} 4. g3
{[%clk 0:03:01.1]} 4... Bb7 {[%clk 0:03:03.7]} 5. Bg2 {[%clk 0:03:02.2]} 5...
Be7 {[%clk 0:03:05.3]} 6. O-O {[%clk 0:03:03.1]} 6... O-O {[%clk 0:03:06.8]} 7.
Re1 {[%clk 0:03:04.4]} 7... d5 {[%clk 0:03:05.1]} 8. cxd5 {[%clk 0:03:04.4]}
8... exd5 {[%clk 0:03:06.3]} 9. Nc3 {[%clk 0:03:05.1]} 9... Na6 {[%clk
0:03:07.9]} 10. Bf4 {[%clk 0:03:04.8]} 10... c5 {[%clk 0:03:08.9]} 11. e3 {[%clk
0:03:05.1]} 11... Ne4 {[%clk 0:03:03.6]} 12. h4 {[%clk 0:03:04.4]} 12... Nc7
{[%clk 0:02:52.9]} 13. Rc1 {[%clk 0:02:53.4]} 13... Ne6 {[%clk 0:02:51.9]} 14.
Be5 {[%clk 0:02:51]} 14... f6 {[%clk 0:02:36.8]} 15. Bf4 {[%clk 0:02:51.7]}
15... Nxf4 {[%clk 0:02:37.9]} 16. exf4 {[%clk 0:02:51.1]} 16... Rc8 {[%clk
0:02:25]} 17. Bh3 {[%clk 0:02:47.3]} 17... f5 {[%clk 0:02:25.8]} 18. dxc5 {[%clk
0:02:31.3]} 18... Bxc5 {[%clk 0:02:25.3]} 19. Nd4 {[%clk 0:02:16]} 19... Qf6
{[%clk 0:02:10.6]} 20. Nce2 {[%clk 0:02:15.7]} 20... Ba6 {[%clk 0:01:54]} 21.
Rxc5 {[%clk 0:01:55.7]} 21... bxc5 {[%clk 0:01:52.2]} 22. Nxf5 {[%clk 0:01:50]}
22... Rcd8 {[%clk 0:01:51.7]} 23. Nc3 {[%clk 0:01:30.3]} 23... Nxc3 {[%clk
0:01:30.9]} 24. bxc3 {[%clk 0:01:31.3]} 24... Rfe8 {[%clk 0:01:23]} 25. Rxe8+
{[%clk 0:01:24.3]} 25... Rxe8 {[%clk 0:01:23.5]} 26. Qxd5+ {[%clk 0:01:25.6]}
26... Kh8 {[%clk 0:01:24.8]} 27. Nd6 {[%clk 0:01:15.4]} 27... Rf8 {[%clk
0:01:12.1]} 28. Qxc5 {[%clk 0:01:15.8]} 28... Rd8 {[%clk 0:01:04.7]} 29. Ne4
{[%clk 0:01:00.1]} 29... Qb6 {[%clk 0:00:36.6]} 30. Qe7 {[%clk 0:00:59.8]} 30...
Bb7 {[%clk 0:00:19]} 31. Ng5 {[%clk 0:00:43.4]} 31... Rd1+ {[%clk 0:00:12.8]}
32. Bf1 {[%clk 0:00:42.3]} 32... Rxf1+ {[%clk 0:00:09]} 33. Kxf1 {[%clk
0:00:43.4]} 33... Qb1+ {[%clk 0:00:06]} 34. Ke2 {[%clk 0:00:36.5]} 34... Qc2+
{[%clk 0:00:07.1]} 35. Ke1 {[%clk 0:00:32]} 35... Qc1+ {[%clk 0:00:06.6]} 36.
Ke2 {[%clk 0:00:32.3]} 36... Qc2+ {[%clk 0:00:06.2]} 37. Ke1 {[%clk 0:00:19.2]}
37... Qxc3+ {[%clk 0:00:07.7]} 38. Kf1 {[%clk 0:00:14]} 38... Qa1+ {[%clk
0:00:07.3]} 39. Ke2 {[%clk 0:00:12.2]} 39... Qxa2+ {[%clk 0:00:08.7]} 40. Kd3
{[%clk 0:00:11.1]} 40... Qb3+ {[%clk 0:00:08.9]} 41. Kd4 {[%clk 0:00:10.8]}
41... Qb2+ {[%clk 0:00:10.2]} 42. Kd3 {[%clk 0:00:09.4]} 42... Ba6+ {[%clk
0:00:08.3]} 43. Ke4 {[%clk 0:00:09.1]} 43... Qe2+ {[%clk 0:00:08.5]} 44. Kf5
{[%clk 0:00:08.2]} 44... Qxe7 {[%clk 0:00:09.5]} 0-1

[Event "*** Qualifier 4: Titled Tuesday 3|2 Blitz"]
[Site "Chess.com"]
[Date "2017.04.25"]
[Round "2"]
[White "iturrizaga"]
[Black "Marcus_Harvey"]
[Result "0-1"]
[WhiteElo "2646"]
[BlackElo "2517"]
[TimeControl "180+2"]
[EndTime "13:22:37 PDT"]
[Termination "Marcus_Harvey won by resignation"]

1. Nf3 {[%clk 0:02:55.3]} 1... e6 {[%clk 0:02:59.9]} 2. c4 {[%clk 0:02:57.2]}
2... f5 {[%clk 0:03:00.9]} 3. Nc3 {[%clk 0:02:57.4]} 3... Nf6 {[%clk 0:03:02.5]}
4. g3 {[%clk 0:02:58.9]} 4... Be7 {[%clk 0:03:03.7]} 5. Bg2 {[%clk 0:03:00.5]}
5... O-O {[%clk 0:03:04.9]} 6. O-O {[%clk 0:03:02.1]} 6... d6 {[%clk 0:03:06.6]}
7. d3 {[%clk 0:03:03.4]} 7... e5 {[%clk 0:03:07.4]} 8. b4 {[%clk 0:03:02.6]}
8... Qe8 {[%clk 0:03:07.4]} 9. e3 {[%clk 0:03:03]} 9... Qh5 {[%clk 0:03:06.1]}
10. Nd2 {[%clk 0:03:04]} 10... Qh6 {[%clk 0:03:07.4]} 11. Nb3 {[%clk 0:03:04.7]}
11... Nbd7 {[%clk 0:03:04.5]} 12. f4 {[%clk 0:03:04.5]} 12... exf4 {[%clk
0:02:52.9]} 13. exf4 {[%clk 0:03:04]} 13... Re8 {[%clk 0:02:49.5]} 14. Re1
{[%clk 0:03:03.2]} 14... Nf8 {[%clk 0:02:47.5]} 15. Bb2 {[%clk 0:02:59.7]} 15...
c6 {[%clk 0:02:42.1]} 16. b5 {[%clk 0:03:00.3]} 16... Bd7 {[%clk 0:02:37.1]} 17.
Na5 {[%clk 0:02:59.1]} 17... Bd8 {[%clk 0:02:32.6]} 18. Nxb7 {[%clk 0:02:52.4]}
18... Bb6+ {[%clk 0:02:31.4]} 19. c5 {[%clk 0:02:47.6]} 19... Rxe1+ {[%clk
0:02:15.5]} 20. Qxe1 {[%clk 0:02:48.3]} 20... Re8 {[%clk 0:02:16.6]} 21. cxb6
{[%clk 0:02:32.2]} 21... Rxe1+ {[%clk 0:02:13.6]} 22. Rxe1 {[%clk 0:02:34.1]}
22... axb6 {[%clk 0:02:09.5]} 23. bxc6 {[%clk 0:02:34.9]} 23... Ng4 {[%clk
0:01:58.5]} 24. h4 {[%clk 0:02:25.7]} 24... Qf6 {[%clk 0:01:32.9]} 25. Bd5+
{[%clk 0:01:29.3]} 25... Be6 {[%clk 0:01:13.3]} 26. Nd1 {[%clk 0:01:20.4]} 26...
Qe7 {[%clk 0:00:50.4]} 27. Ba3 {[%clk 0:00:57]} 27... Qf6 {[%clk 0:00:51]} 28.
Bb2 {[%clk 0:00:31.9]} 28... Qe7 {[%clk 0:00:52]} 29. Nf2 {[%clk 0:00:14.9]}
29... Nf6 {[%clk 0:00:33.6]} 30. Bxf6 {[%clk 0:00:15.7]} 30... gxf6 {[%clk
0:00:20.3]} 31. d4 {[%clk 0:00:16.8]} 31... Qc7 {[%clk 0:00:16.3]} 32. Rxe6
{[%clk 0:00:15.8]} 32... Nxe6 {[%clk 0:00:16.1]} 33. Bxe6+ {[%clk 0:00:17.7]}
33... Kg7 {[%clk 0:00:17.4]} 34. d5 {[%clk 0:00:19.1]} 34... b5 {[%clk
0:00:17.9]} 35. Bxf5 {[%clk 0:00:20.3]} 35... h5 {[%clk 0:00:17.7]} 36. Be6
{[%clk 0:00:21.2]} 36... b4 {[%clk 0:00:18.1]} 37. Kg2 {[%clk 0:00:22.3]} 37...
f5 {[%clk 0:00:15.1]} 38. Bxf5 {[%clk 0:00:22.1]} 38... Qb6 {[%clk 0:00:15.5]}
39. Nxd6 {[%clk 0:00:21.2]} 39... Qc5 {[%clk 0:00:16.6]} 40. Be6 {[%clk
0:00:22]} 40... Qxd6 {[%clk 0:00:17.6]} 41. Ne4 {[%clk 0:00:23.1]} 41... Qc7
{[%clk 0:00:17.4]} 42. Bd7 {[%clk 0:00:23.7]} 42... Qa5 {[%clk 0:00:17.7]} 43.
Be6 {[%clk 0:00:19.6]} 43... Qxa2+ {[%clk 0:00:18.1]} 44. Kh3 {[%clk 0:00:20.8]}
44... Qb1 {[%clk 0:00:19.4]} 45. g4 {[%clk 0:00:02.6]} 45... Qxe4 {[%clk
0:00:17.9]} 46. gxh5 {[%clk 0:00:03.4]} 46... Qf3+ {[%clk 0:00:14]} 47. Kh2
{[%clk 0:00:03.6]} 47... Qe2+ {[%clk 0:00:14.4]} 48. Kg3 {[%clk 0:00:04.8]}
48... Qd3+ {[%clk 0:00:15]} 49. Kg4 {[%clk 0:00:06.2]} 49... Qd1+ {[%clk
0:00:13.8]} 50. Kg5 {[%clk 0:00:07.4]} 50... Qg1+ {[%clk 0:00:14.4]} 51. Bg4
{[%clk 0:00:08.9]} 51... Qc5 {[%clk 0:00:14.8]} 52. h6+ {[%clk 0:00:10.8]} 52...
Kh8 {[%clk 0:00:15.8]} 53. Be6 {[%clk 0:00:12.1]} 53... b3 {[%clk 0:00:16.8]}
54. Kf6 {[%clk 0:00:11.5]} 54... b2 {[%clk 0:00:18.1]} 55. Bf5 {[%clk
0:00:12.9]} 55... Qxd5 {[%clk 0:00:18]} 0-1

[Event "*** Qualifier 4: Titled Tuesday 3|2 Blitz"]
[Site "Chess.com"]
[Date "2017.04.25"]
[Round "2"]
[White "biostatistician"]
[Black "tigra"]
[Result "0-1"]
[WhiteElo "2438"]
[BlackElo "2597"]
[TimeControl "180+2"]
[EndTime "13:22:43 PDT"]
[Termination "tigra won by resignation"]

1. d4 {[%clk 0:03:02]} 1... Nf6 {[%clk 0:03:00]} 2. Nf3 {[%clk 0:03:02.8]} 2...
g6 {[%clk 0:02:57.2]} 3. c4 {[%clk 0:03:04.2]} 3... Bg7 {[%clk 0:02:58.6]} 4.
Nc3 {[%clk 0:03:05.7]} 4... d5 {[%clk 0:03:00.1]} 5. cxd5 {[%clk 0:03:06]} 5...
Nxd5 {[%clk 0:03:02]} 6. e4 {[%clk 0:03:07.9]} 6... Nxc3 {[%clk 0:03:02.9]} 7.
bxc3 {[%clk 0:03:09.8]} 7... c5 {[%clk 0:03:04.5]} 8. Be3 {[%clk 0:03:11]} 8...
Nc6 {[%clk 0:03:02.8]} 9. Rc1 {[%clk 0:03:10.7]} 9... cxd4 {[%clk 0:02:45.3]}
10. cxd4 {[%clk 0:03:12.6]} 10... Qa5+ {[%clk 0:02:45.8]} 11. Qd2 {[%clk
0:03:13.5]} 11... O-O {[%clk 0:02:45.3]} 12. Qxa5 {[%clk 0:03:03.7]} 12... Nxa5
{[%clk 0:02:47.2]} 13. Bd3 {[%clk 0:03:04.9]} 13... Be6 {[%clk 0:02:45.1]} 14.
Ke2 {[%clk 0:02:57.1]} 14... Rfc8 {[%clk 0:02:43.3]} 15. d5 {[%clk 0:02:54.2]}
15... Bd7 {[%clk 0:02:41.2]} 16. Nd4 {[%clk 0:02:48.1]} 16... e6 {[%clk
0:01:57.1]} 17. dxe6 {[%clk 0:02:39.9]} 17... fxe6 {[%clk 0:01:59]} 18. Nb5
{[%clk 0:02:28.9]} 18... b6 {[%clk 0:01:47.6]} 19. Rxc8+ {[%clk 0:02:18.3]}
19... Bxc8 {[%clk 0:01:48.7]} 20. Rc1 {[%clk 0:02:18.5]} 20... Ba6 {[%clk
0:00:58.2]} 21. Rc7 {[%clk 0:02:11.7]} 21... Be5 {[%clk 0:00:53.1]} 22. Rxa7
{[%clk 0:02:03.3]} 22... Rxa7 {[%clk 0:00:48.8]} 23. Nxa7 {[%clk 0:02:05.2]}
23... Nc4 {[%clk 0:00:42.4]} 24. Nc6 {[%clk 0:01:51.8]} 24... Bxh2 {[%clk
0:00:39.1]} 25. g3 {[%clk 0:01:51.8]} 25... Nxe3 {[%clk 0:00:24.1]} 26. Bxa6
{[%clk 0:01:34.4]} 26... Ng4 {[%clk 0:00:25.3]} 27. Kf3 {[%clk 0:01:33.2]} 27...
h5 {[%clk 0:00:26.3]} 28. Bc4 {[%clk 0:01:25.9]} 28... Kf7 {[%clk 0:00:27.2]}
29. Nd8+ {[%clk 0:01:24.1]} 29... Ke7 {[%clk 0:00:26.2]} 30. Nc6+ {[%clk
0:00:35.3]} 30... Kd6 {[%clk 0:00:26.6]} 31. Bb5 {[%clk 0:00:35]} 31... Bg1
{[%clk 0:00:26.6]} 32. e5+ {[%clk 0:00:20.9]} 32... Kc5 {[%clk 0:00:22.6]} 33.
Nd8 {[%clk 0:00:19.7]} 33... Kxb5 {[%clk 0:00:22.5]} 34. Nxe6 {[%clk 0:00:18.3]}
34... Bxf2 {[%clk 0:00:23.4]} 35. Nf4 {[%clk 0:00:17.7]} 35... Kc6 {[%clk
0:00:22.2]} 36. Nxg6 {[%clk 0:00:18.2]} 36... Be1 {[%clk 0:00:21.8]} 37. e6
{[%clk 0:00:18.2]} 37... Kd6 {[%clk 0:00:22.6]} 38. e7 {[%clk 0:00:19.5]} 38...
Kd7 {[%clk 0:00:20.9]} 39. Nf4 {[%clk 0:00:19.4]} 39... Ne5+ {[%clk 0:00:20.6]}
40. Ke4 {[%clk 0:00:20]} 40... Nc6 {[%clk 0:00:21.4]} 41. Nxh5 {[%clk
0:00:20.7]} 41... Nxe7 {[%clk 0:00:22.6]} 42. Kd4 {[%clk 0:00:16.3]} 42... Kd6
{[%clk 0:00:23]} 43. Kc4 {[%clk 0:00:16.9]} 43... Bf2 {[%clk 0:00:24.4]} 44. a4
{[%clk 0:00:17.3]} 44... Nd5 {[%clk 0:00:25.5]} 45. Kb5 {[%clk 0:00:15.4]} 45...
Bc5 {[%clk 0:00:25.5]} 46. Ng7 {[%clk 0:00:12.6]} 46... Nc3+ {[%clk 0:00:26.4]}
47. Kc4 {[%clk 0:00:11]} 47... Nxa4 {[%clk 0:00:28.3]} 48. g4 {[%clk 0:00:12.3]}
48... Kc6 {[%clk 0:00:29]} 49. g5 {[%clk 0:00:11.9]} 49... b5+ {[%clk
0:00:30.9]} 50. Kb3 {[%clk 0:00:13.2]} 50... Be7 {[%clk 0:00:31]} 51. g6 {[%clk
0:00:13.8]} 51... Nc5+ {[%clk 0:00:32.9]} 52. Kc2 {[%clk 0:00:14.4]} 52... Bf8
{[%clk 0:00:30]} 53. Nf5 {[%clk 0:00:09.9]} 53... Ne6 {[%clk 0:00:31.4]} 54. Kb3
{[%clk 0:00:11.1]} 54... Kc5 {[%clk 0:00:32.4]} 55. Ng3 {[%clk 0:00:05.8]} 55...
Bg7 {[%clk 0:00:33.2]} 56. Nf5 {[%clk 0:00:06.4]} 56... Nd4+ {[%clk 0:00:33.7]}
57. Nxd4 {[%clk 0:00:06.6]} 57... Bxd4 {[%clk 0:00:35.6]} 0-1

[Event "*** Qualifier 4: Titled Tuesday 3|2 Blitz"]
[Site "Chess.com"]
[Date "2017.04.25"]
[Round "2"]
[White "woodhy"]
[Black "DanielNaroditsky"]
[Result "1-0"]
[WhiteElo "2401"]
[BlackElo "2698"]
[TimeControl "180+2"]
[EndTime "13:22:43 PDT"]
[Termination "woodhy won by resignation"]

1. e4 {[%clk 0:02:54.4]} 1... e5 {[%clk 0:03:00.8]} 2. Nf3 {[%clk 0:02:54.6]}
2... Nc6 {[%clk 0:03:02.3]} 3. Bb5 {[%clk 0:02:54.3]} 3... a6 {[%clk 0:03:03.5]}
4. Bxc6 {[%clk 0:02:55.3]} 4... dxc6 {[%clk 0:03:05]} 5. O-O {[%clk 0:02:57.1]}
5... f6 {[%clk 0:03:06.4]} 6. c3 {[%clk 0:02:56.6]} 6... Bg4 {[%clk 0:03:08.1]}
7. h3 {[%clk 0:02:57.3]} 7... Bh5 {[%clk 0:03:09.3]} 8. Qe2 {[%clk 0:02:58.6]}
8... Bd6 {[%clk 0:03:07.5]} 9. d4 {[%clk 0:02:59.2]} 9... Qe7 {[%clk 0:03:04.7]}
10. Re1 {[%clk 0:02:48.8]} 10... O-O-O {[%clk 0:03:05.9]} 11. Qd3 {[%clk
0:02:42.6]} 11... g5 {[%clk 0:03:04.2]} 12. Nh2 {[%clk 0:02:16.3]} 12... Bg6
{[%clk 0:03:00.3]} 13. Nd2 {[%clk 0:02:05.6]} 13... exd4 {[%clk 0:02:58.2]} 14.
cxd4 {[%clk 0:02:03.5]} 14... Bxh2+ {[%clk 0:02:58]} 15. Kxh2 {[%clk 0:02:05.4]}
15... Qd6+ {[%clk 0:02:59.5]} 16. Kg1 {[%clk 0:01:59.6]} 16... Qxd4 {[%clk
0:03:00.5]} 17. Qf3 {[%clk 0:01:58.6]} 17... Ne7 {[%clk 0:02:58.2]} 18. Nb3
{[%clk 0:01:58]} 18... Qe5 {[%clk 0:02:59.3]} 19. Bd2 {[%clk 0:01:55.8]} 19...
Rhf8 {[%clk 0:02:51.7]} 20. Bc3 {[%clk 0:01:55.7]} 20... Qe6 {[%clk 0:02:49.7]}
21. Nc5 {[%clk 0:01:50.8]} 21... Qc4 {[%clk 0:02:50.5]} 22. Qg4+ {[%clk
0:01:38.9]} 22... Kb8 {[%clk 0:02:20.3]} 23. Nd7+ {[%clk 0:01:34.6]} 23... Rxd7
{[%clk 0:02:19.1]} 24. Qxd7 {[%clk 0:01:36.5]} 24... Nc8 {[%clk 0:02:18.3]} 25.
e5 {[%clk 0:01:28.5]} 25... f5 {[%clk 0:02:02.8]} 26. e6 {[%clk 0:00:41.3]}
26... Nb6 {[%clk 0:02:03.4]} 27. Qg7 {[%clk 0:00:37.1]} 27... Re8 {[%clk
0:02:00.9]} 28. Be5 {[%clk 0:00:27.6]} 28... Nd5 {[%clk 0:01:50.2]} 29. Qd7
{[%clk 0:00:27]} 29... Re7 {[%clk 0:01:43.1]} 30. Qd8+ {[%clk 0:00:26.8]} 30...
Ka7 {[%clk 0:01:44.4]} 31. Bxc7 {[%clk 0:00:22.2]} 31... Rxc7 {[%clk 0:01:39.9]}
32. e7 {[%clk 0:00:22.4]} 32... Qd4 {[%clk 0:01:16.4]} 33. Rad1 {[%clk
0:00:18.2]} 33... Qc5 {[%clk 0:01:03.5]} 34. e8=Q {[%clk 0:00:17.7]} 34... Bxe8
{[%clk 0:01:04.4]} 35. Rxe8 {[%clk 0:00:19.6]} 35... f4 {[%clk 0:01:02.9]} 36.
Rd3 {[%clk 0:00:16.7]} 36... Qc2 {[%clk 0:00:36.5]} 37. Rb3 {[%clk 0:00:16.2]}
37... Qxb3 {[%clk 0:00:23.4]} 38. axb3 {[%clk 0:00:15.2]} 38... h6 {[%clk
0:00:22.8]} 39. Qb8+ {[%clk 0:00:13.9]} 39... Kb6 {[%clk 0:00:24.4]} 40. Re6
{[%clk 0:00:15.8]} 40... Rd7 {[%clk 0:00:25.6]} 41. Rxh6 {[%clk 0:00:16.4]}
41... Nb4 {[%clk 0:00:24.7]} 42. Qe5 {[%clk 0:00:16.8]} 42... Rd5 {[%clk
0:00:21.3]} 43. Qe7 {[%clk 0:00:16.1]} 43... Rd1+ {[%clk 0:00:17]} 44. Kh2
{[%clk 0:00:16.9]} 44... Nd5 {[%clk 0:00:18.9]} 45. Qd8+ {[%clk 0:00:16.7]}
45... Kb5 {[%clk 0:00:18.1]} 46. Rh7 {[%clk 0:00:18.6]} 46... b6 {[%clk
0:00:18.6]} 47. Rb7 {[%clk 0:00:19.2]} 47... Rd2 {[%clk 0:00:17.4]} 48. Rxb6+
{[%clk 0:00:19.9]} 48... Kc5 {[%clk 0:00:19.1]} 49. Rxa6 {[%clk 0:00:19.7]}
49... Rxf2 {[%clk 0:00:20.5]} 50. Qa5+ {[%clk 0:00:19.7]} 50... Kd4 {[%clk
0:00:21.7]} 51. Qe1 {[%clk 0:00:21]} 51... Rxb2 {[%clk 0:00:13.9]} 52. Ra4+
{[%clk 0:00:22]} 52... Kd3 {[%clk 0:00:13]} 53. Qd1+ {[%clk 0:00:23.2]} 53...
Ke3 {[%clk 0:00:11.1]} 54. Qd4+ {[%clk 0:00:23.7]} 1-0

[Event "*** Qualifier 4: Titled Tuesday 3|2 Blitz"]
[Site "Chess.com"]
[Date "2017.04.25"]
[Round "2"]
[White "Beca95"]
[Black "1stSecond"]
[Result "1-0"]
[WhiteElo "2686"]
[BlackElo "2485"]
[TimeControl "180+2"]
[EndTime "13:22:45 PDT"]
[Termination "Beca95 won by resignation"]

1. d4 {[%clk 0:03:02]} 1... Nf6 {[%clk 0:03:00.3]} 2. c4 {[%clk 0:03:03.1]} 2...
e6 {[%clk 0:03:01.6]} 3. Nc3 {[%clk 0:03:04.8]} 3... Bb4 {[%clk 0:03:01.5]} 4.
Nf3 {[%clk 0:03:06.4]} 4... b6 {[%clk 0:03:00.2]} 5. Bg5 {[%clk 0:03:06.2]} 5...
Bb7 {[%clk 0:02:59]} 6. Nd2 {[%clk 0:03:04.6]} 6... h6 {[%clk 0:02:57.4]} 7. Bh4
{[%clk 0:03:04.9]} 7... Bxc3 {[%clk 0:02:53.8]} 8. bxc3 {[%clk 0:03:05.3]} 8...
d6 {[%clk 0:02:55.3]} 9. e3 {[%clk 0:03:04.5]} 9... Nbd7 {[%clk 0:02:53.8]} 10.
f3 {[%clk 0:03:05.9]} 10... Qe7 {[%clk 0:02:49.7]} 11. Bd3 {[%clk 0:03:06.8]}
11... e5 {[%clk 0:02:47.7]} 12. Qe2 {[%clk 0:03:06.7]} 12... O-O {[%clk
0:02:28]} 13. e4 {[%clk 0:03:07.1]} 13... Rfe8 {[%clk 0:02:25.2]} 14. O-O {[%clk
0:03:06.9]} 14... g5 {[%clk 0:02:25.3]} 15. Bf2 {[%clk 0:03:06.8]} 15... Nf8
{[%clk 0:02:26.4]} 16. g3 {[%clk 0:03:07.7]} 16... Ne6 {[%clk 0:02:21.4]} 17.
Rfe1 {[%clk 0:03:08.9]} 17... c5 {[%clk 0:02:20.6]} 18. d5 {[%clk 0:03:09.6]}
18... Nf8 {[%clk 0:02:16.8]} 19. Nf1 {[%clk 0:03:10.8]} 19... Bc8 {[%clk
0:02:14.8]} 20. Ne3 {[%clk 0:03:11.9]} 20... Ng6 {[%clk 0:01:52.5]} 21. Kh1
{[%clk 0:03:10.6]} 21... Qf8 {[%clk 0:01:49.3]} 22. Bc2 {[%clk 0:03:10]} 22...
h5 {[%clk 0:01:48.9]} 23. Rg1 {[%clk 0:03:07.4]} 23... Qh6 {[%clk 0:01:49]} 24.
a4 {[%clk 0:03:05.3]} 24... Kh7 {[%clk 0:01:35.4]} 25. a5 {[%clk 0:03:02.5]}
25... Bd7 {[%clk 0:01:36.1]} 26. Ba4 {[%clk 0:02:54.9]} 26... Ne7 {[%clk
0:01:31.2]} 27. Rgb1 {[%clk 0:02:48.6]} 27... Reb8 {[%clk 0:01:24.8]} 28. Bc2
{[%clk 0:02:45.6]} 28... h4 {[%clk 0:01:17.4]} 29. g4 {[%clk 0:02:46.1]} 29...
Ng6 {[%clk 0:01:15.2]} 30. Qd1 {[%clk 0:02:44.8]} 30... Nf4 {[%clk 0:01:13.7]}
31. Rb3 {[%clk 0:02:45.9]} 31... Qf8 {[%clk 0:01:04.3]} 32. Qc1 {[%clk
0:02:41.5]} 32... Qc8 {[%clk 0:01:01.2]} 33. Rba3 {[%clk 0:02:41.8]} 33... b5
{[%clk 0:00:53.7]} 34. cxb5 {[%clk 0:02:41.9]} 34... Bxb5 {[%clk 0:00:51.8]} 35.
c4 {[%clk 0:02:39.4]} 35... Bd7 {[%clk 0:00:46.9]} 36. Qd1 {[%clk 0:02:40.6]}
36... Rb2 {[%clk 0:00:44.7]} 37. Be1 {[%clk 0:02:41.8]} 37... Rab8 {[%clk
0:00:42.4]} 38. Bc3 {[%clk 0:02:42.8]} 38... R2b7 {[%clk 0:00:38.3]} 39. Kg1
{[%clk 0:02:33.2]} 39... a6 {[%clk 0:00:37.9]} 40. Kf2 {[%clk 0:02:34.1]} 40...
Qc7 {[%clk 0:00:32]} 41. Ke1 {[%clk 0:02:35]} 41... Ne8 {[%clk 0:00:28.5]} 42.
Kd2 {[%clk 0:02:35.4]} 42... Qd8 {[%clk 0:00:29.4]} 43. Rb1 {[%clk 0:02:33.6]}
43... Rxb1 {[%clk 0:00:29.5]} 44. Bxb1 {[%clk 0:02:35.5]} 44... Nc7 {[%clk
0:00:29.6]} 45. Bc2 {[%clk 0:02:36.3]} 45... Qf6 {[%clk 0:00:30.7]} 46. Nf5
{[%clk 0:02:27.1]} 46... Bxf5 {[%clk 0:00:31.2]} 47. exf5 {[%clk 0:02:29]} 47...
Qd8 {[%clk 0:00:32]} 48. Rb3 {[%clk 0:02:24.4]} 48... Rxb3 {[%clk 0:00:32.4]}
49. Bxb3 {[%clk 0:02:25.6]} 49... Qb8 {[%clk 0:00:33.5]} 50. Bc2 {[%clk
0:02:26.9]} 50... Kg7 {[%clk 0:00:34.3]} 51. f6+ {[%clk 0:02:16]} 51... Kxf6
{[%clk 0:00:34.8]} 52. Qe1 {[%clk 0:02:17.6]} 52... Ne8 {[%clk 0:00:33.5]} 53.
Qe4 {[%clk 0:02:18.4]} 53... Qc8 {[%clk 0:00:30.1]} 54. Qh7 {[%clk 0:02:18.9]}
54... Ng6 {[%clk 0:00:24.9]} 55. Qg8 {[%clk 0:01:53.8]} 55... Qd7 {[%clk
0:00:22.1]} 56. Bf5 {[%clk 0:01:54.6]} 56... Qe7 {[%clk 0:00:22.4]} 57. Kc2
{[%clk 0:01:44.7]} 57... Qf8 {[%clk 0:00:22]} 58. Qh7 {[%clk 0:01:31.8]} 58...
Qg7 {[%clk 0:00:22.4]} 59. Qxg7+ {[%clk 0:01:30.3]} 59... Kxg7 {[%clk
0:00:24.3]} 60. Bd2 {[%clk 0:01:28.5]} 60... Kf6 {[%clk 0:00:24.7]} 61. Bc8
{[%clk 0:01:28.7]} 61... Nc7 {[%clk 0:00:25.7]} 62. Kd3 {[%clk 0:01:29.6]} 62...
Ne7 {[%clk 0:00:24.6]} 63. Bb7 {[%clk 0:01:28.7]} 63... Kg6 {[%clk 0:00:25.2]}
64. Be3 {[%clk 0:01:29.6]} 64... f5 {[%clk 0:00:26.3]} 65. Bxc5 {[%clk
0:01:30.3]} 65... e4+ {[%clk 0:00:21.1]} 66. fxe4 {[%clk 0:01:28.3]} 66... fxe4+
{[%clk 0:00:21.1]} 67. Kxe4 {[%clk 0:01:28.8]} 67... dxc5 {[%clk 0:00:19]} 68.
d6 {[%clk 0:01:30.2]} 68... Ne8 {[%clk 0:00:20.4]} 69. dxe7 {[%clk 0:01:28.3]}
69... Kf6 {[%clk 0:00:21.8]} 70. Bxa6 {[%clk 0:01:28.3]} 70... Kxe7 {[%clk
0:00:23.3]} 71. Ke5 {[%clk 0:01:27.5]} 71... Nf6 {[%clk 0:00:23.8]} 72. Bc8
{[%clk 0:01:28.6]} 72... Ne8 {[%clk 0:00:23.9]} 73. a6 {[%clk 0:01:27.8]} 73...
Nc7 {[%clk 0:00:23.8]} 74. a7 {[%clk 0:01:28.9]} 74... Kd8 {[%clk 0:00:24]} 75.
Bb7 {[%clk 0:01:30.1]} 75... Kd7 {[%clk 0:00:25.1]} 76. Bd5 {[%clk 0:01:30.2]}
1-0